[Event "*** Titled Tuesday 3|2 Blitz"]
[Site "Chess.com"]
[Date "2014.12.30"]
[Round "6"]
[White "MartinZumsande"]
[Black "Philofive"]
[Result "0-1"]
[WhiteElo "2211"]
[BlackElo "2276"]
[TimeControl "180+2"]
[EndTime "12:18:04 PST"]
[Termination "Philofive won by resignation"]

1. e4 {[%clk 0:03:00]} 1... e6 {[%clk 0:02:44.2]} 2. d4 {[%clk 0:02:59.1]} 2...
d5 {[%clk 0:02:44.8]} 3. Nc3 {[%clk 0:03:00.7]} 3... Bb4 {[%clk 0:02:45.2]} 4.
e5 {[%clk 0:03:01.2]} 4... Ne7 {[%clk 0:02:45]} 5. a3 {[%clk 0:03:02.3]} 5...
Bxc3+ {[%clk 0:02:46.1]} 6. bxc3 {[%clk 0:03:04.2]} 6... b6 {[%clk 0:02:47.2]}
7. Bb5+ {[%clk 0:03:01.4]} 7... c6 {[%clk 0:02:47.9]} 8. Ba4 {[%clk 0:03:00.4]}
8... Ba6 {[%clk 0:02:47.5]} 9. Ne2 {[%clk 0:03:00.8]} 9... Nf5 {[%clk
0:02:41.5]} 10. O-O {[%clk 0:02:57.9]} 10... h5 {[%clk 0:02:37.4]} 11. Re1
{[%clk 0:02:57.9]} 11... h4 {[%clk 0:02:30.9]} 12. h3 {[%clk 0:02:54.7]} 12...
Qc7 {[%clk 0:02:16.2]} 13. Bb3 {[%clk 0:02:51.5]} 13... c5 {[%clk 0:02:06.5]}
14. dxc5 {[%clk 0:02:44.7]} 14... bxc5 {[%clk 0:02:05.4]} 15. Ba4+ {[%clk
0:02:33.6]} 15... Nc6 {[%clk 0:01:56.7]} 16. Nf4 {[%clk 0:02:19.5]} 16... Rc8
{[%clk 0:01:51.9]} 17. Rb1 {[%clk 0:02:15.3]} 17... Qa5 {[%clk 0:01:42]} 18.
Bxc6+ {[%clk 0:02:00.3]} 18... Rxc6 {[%clk 0:01:40.1]} 19. Nxd5 {[%clk
0:01:55.8]} 19... exd5 {[%clk 0:01:03.3]} 20. Qxd5 {[%clk 0:01:56.5]} 20... Ne7
{[%clk 0:01:04.7]} 21. Rb8+ {[%clk 0:01:55]} 21... Rc8 {[%clk 0:01:04]} 22. Qa8
{[%clk 0:01:03.7]} 22... O-O {[%clk 0:01:03.9]} 23. Rxc8 {[%clk 0:01:04.9]}
23... Rxc8 {[%clk 0:00:25.6]} 24. Qxa7 {[%clk 0:01:05.5]} 24... Qxc3 {[%clk
0:00:26.5]} 25. Rd1 {[%clk 0:00:39.8]} 25... Qxc2 {[%clk 0:00:24.4]} 26. Qd7
{[%clk 0:00:40]} 26... Bb5 {[%clk 0:00:16.5]} 27. Qd6 {[%clk 0:00:21.5]} 27...
Bc4 {[%clk 0:00:13.7]} 28. Bg5 {[%clk 0:00:21.3]} 28... Nf5 {[%clk 0:00:13.2]}
29. Qd7 {[%clk 0:00:21.1]} 29... Be6 {[%clk 0:00:14]} 30. Qd2 {[%clk 0:00:19]}
30... Qxd2 {[%clk 0:00:14.8]} 31. Rxd2 {[%clk 0:00:20.9]} 31... c4 {[%clk
0:00:16.4]} 32. Rc2 {[%clk 0:00:22.2]} 32... Nd4 {[%clk 0:00:17.1]} 33. Rd2
{[%clk 0:00:17.9]} 33... Nb3 {[%clk 0:00:18.3]} 34. Rb2 {[%clk 0:00:16.7]} 34...
c3 {[%clk 0:00:19.2]} 35. Rb1 {[%clk 0:00:17.1]} 35... c2 {[%clk 0:00:20.4]} 0-1

[Event "*** Titled Tuesday 3|2 Blitz"]
[Site "Chess.com"]
[Date "2014.12.30"]
[Round "6"]
[White "MikePerelshteyn"]
[Black "AlexanderL"]
[Result "1-0"]
[WhiteElo "2069"]
[BlackElo "2393"]
[TimeControl "180+2"]
[EndTime "12:18:09 PST"]
[Termination "MikePerelshteyn won by checkmate"]

1. Nf3 {[%clk 0:02:58.8]} 1... d5 {[%clk 0:02:58.6]} 2. g3 {[%clk 0:03:00]} 2...
Nf6 {[%clk 0:02:55.8]} 3. Bg2 {[%clk 0:03:01.3]} 3... e6 {[%clk 0:02:57.1]} 4.
O-O {[%clk 0:03:02.5]} 4... Be7 {[%clk 0:02:58.4]} 5. d3 {[%clk 0:03:03.9]} 5...
O-O {[%clk 0:02:57.5]} 6. Nbd2 {[%clk 0:03:05]} 6... a5 {[%clk 0:02:57.3]} 7. e4
{[%clk 0:03:06]} 7... a4 {[%clk 0:02:58.1]} 8. a3 {[%clk 0:03:07]} 8... c5
{[%clk 0:02:47]} 9. e5 {[%clk 0:03:07]} 9... Nfd7 {[%clk 0:02:47.5]} 10. Re1
{[%clk 0:03:08.3]} 10... Nc6 {[%clk 0:02:47.5]} 11. Nf1 {[%clk 0:03:08.8]} 11...
b5 {[%clk 0:02:44.2]} 12. h4 {[%clk 0:03:08.2]} 12... b4 {[%clk 0:02:42.4]} 13.
h5 {[%clk 0:03:09.2]} 13... h6 {[%clk 0:02:39.6]} 14. N1h2 {[%clk 0:03:09.5]}
14... Re8 {[%clk 0:02:36.1]} 15. Ng4 {[%clk 0:03:06.9]} 15... Bf8 {[%clk
0:02:36.8]} 16. Bf4 {[%clk 0:03:06.3]} 16... bxa3 {[%clk 0:02:36.3]} 17. bxa3
{[%clk 0:03:06.7]} 17... Rb8 {[%clk 0:02:31.7]} 18. c4 {[%clk 0:03:02.8]} 18...
Nb6 {[%clk 0:02:30]} 19. Qc1 {[%clk 0:02:55.9]} 19... Kh7 {[%clk 0:02:23]} 20.
Rb1 {[%clk 0:02:41.2]} 20... Ba6 {[%clk 0:02:14.3]} 21. Bf1 {[%clk 0:02:35.3]}
21... Ne7 {[%clk 0:02:03.1]} 22. Bxh6 {[%clk 0:02:31.7]} 22... gxh6 {[%clk
0:02:01.8]} 23. Nf6+ {[%clk 0:02:31.8]} 23... Kh8 {[%clk 0:02:01.6]} 24. Qc3
{[%clk 0:02:05]} 24... Nf5 {[%clk 0:01:58.2]} 25. Nxe8 {[%clk 0:02:04.2]} 25...
Qxe8 {[%clk 0:01:45.5]} 26. Qa5 {[%clk 0:02:05]} 26... Bb7 {[%clk 0:01:29.3]}
27. Qxb6 {[%clk 0:02:00]} 27... dxc4 {[%clk 0:01:29.7]} 28. dxc4 {[%clk
0:01:58.9]} 28... Be7 {[%clk 0:01:24.8]} 29. Bg2 {[%clk 0:01:57.4]} 29... Qc8
{[%clk 0:01:21.8]} 30. Red1 {[%clk 0:01:46.3]} 30... Kg7 {[%clk 0:01:15.7]} 31.
Ne1 {[%clk 0:01:38.1]} 31... Bxg2 {[%clk 0:00:40]} 32. Qxb8 {[%clk 0:01:38]}
32... Qxb8 {[%clk 0:00:41.6]} 33. Rxb8 {[%clk 0:01:37.5]} 33... Be4 {[%clk
0:00:41.8]} 34. f3 {[%clk 0:01:21.8]} 34... Bc6 {[%clk 0:00:42.4]} 35. Rc8
{[%clk 0:01:04.4]} 35... Bb7 {[%clk 0:00:40.5]} 36. Rc7 {[%clk 0:01:01.8]} 36...
Ba6 {[%clk 0:00:41.3]} 37. g4 {[%clk 0:01:02.6]} 37... Ne3 {[%clk 0:00:36]} 38.
Rdd7 {[%clk 0:00:59.2]} 38... Bh4 {[%clk 0:00:32.1]} 39. Rxf7+ {[%clk
0:00:58.5]} 39... Kg8 {[%clk 0:00:33.5]} 40. Rg7+ {[%clk 0:00:42.6]} 40... Kf8
{[%clk 0:00:32.7]} 41. Rh7 {[%clk 0:00:42.3]} 41... Kg8 {[%clk 0:00:32.6]} 42.
Rcg7+ {[%clk 0:00:40.1]} 42... Kf8 {[%clk 0:00:33.6]} 43. Ra7 {[%clk 0:00:40.6]}
43... Kg8 {[%clk 0:00:32.6]} 44. Rhc7 {[%clk 0:00:32.1]} 44... Bxc4 {[%clk
0:00:29.2]} 45. Ra8+ {[%clk 0:00:29.4]} 45... Bd8 {[%clk 0:00:30.2]} 46. Rxd8#
{[%clk 0:00:30.3]} 1-0

[Event "*** Titled Tuesday 3|2 Blitz"]
[Site "Chess.com"]
[Date "2014.12.30"]
[Round "6"]
[White "zmaj23"]
[Black "esr44"]
[Result "1-0"]
[WhiteElo "2110"]
[BlackElo "1990"]
[TimeControl "180+2"]
[EndTime "12:19:09 PST"]
[Termination "zmaj23 won by resignation"]

1. e4 {[%clk 0:03:00]} 1... c6 {[%clk 0:02:58.6]} 2. Nc3 {[%clk 0:03:00.7]} 2...
d5 {[%clk 0:03:00]} 3. Nf3 {[%clk 0:03:02.3]} 3... Bg4 {[%clk 0:03:01]} 4. h3
{[%clk 0:03:02.9]} 4... Bh5 {[%clk 0:03:02.2]} 5. exd5 {[%clk 0:03:02.7]} 5...
cxd5 {[%clk 0:03:03.4]} 6. Bb5+ {[%clk 0:03:03.8]} 6... Nc6 {[%clk 0:03:04.6]}
7. g4 {[%clk 0:03:05.7]} 7... Bg6 {[%clk 0:03:05.5]} 8. Ne5 {[%clk 0:03:07.4]}
8... Rc8 {[%clk 0:03:07.1]} 9. d4 {[%clk 0:03:07.1]} 9... e6 {[%clk 0:03:08.2]}
10. h4 {[%clk 0:03:08.1]} 10... f6 {[%clk 0:03:09.1]} 11. Nxg6 {[%clk 0:03:09]}
11... hxg6 {[%clk 0:03:10.3]} 12. Qd3 {[%clk 0:03:10.2]} 12... f5 {[%clk
0:03:11.7]} 13. Bxc6+ {[%clk 0:03:06.7]} 13... Rxc6 {[%clk 0:03:10.8]} 14. h5
{[%clk 0:02:52.7]} 14... Bb4 {[%clk 0:03:07.3]} 15. Bd2 {[%clk 0:02:45.8]} 15...
Nf6 {[%clk 0:03:07.9]} 16. Bg5 {[%clk 0:02:45.1]} 16... Qc7 {[%clk 0:02:35.1]}
17. Bxf6 {[%clk 0:02:43.8]} 17... gxf6 {[%clk 0:02:31.9]} 18. Kd2 {[%clk
0:02:42.3]} 18... Qf4+ {[%clk 0:02:23.9]} 19. Qe3 {[%clk 0:02:43.6]} 19... Qxg4
{[%clk 0:02:02]} 20. Rag1 {[%clk 0:02:37.8]} 20... Qe4 {[%clk 0:01:48.8]} 21.
Qxe4 {[%clk 0:02:30.4]} 21... dxe4 {[%clk 0:01:33.5]} 22. Rxg6 {[%clk
0:02:11.7]} 22... Kf7 {[%clk 0:01:31.9]} 23. Rg2 {[%clk 0:02:00.2]} 23... Rc4
{[%clk 0:01:07.3]} 24. h6 {[%clk 0:01:12.9]} 24... Rxd4+ {[%clk 0:01:08]} 25.
Ke3 {[%clk 0:01:13.9]} 25... e5 {[%clk 0:00:58.9]} 26. Rg7+ {[%clk 0:01:08.7]}
26... Ke6 {[%clk 0:01:00]} 27. h7 {[%clk 0:01:01.8]} 27... f4+ {[%clk
0:00:51.7]} 28. Ke2 {[%clk 0:00:59.2]} 28... Bxc3 {[%clk 0:00:48.5]} 29. bxc3
{[%clk 0:00:50.1]} 29... Rd7 {[%clk 0:00:48.9]} 30. Rxd7 {[%clk 0:00:46.3]}
30... Kxd7 {[%clk 0:00:50.8]} 31. f3 {[%clk 0:00:44.3]} 31... e3 {[%clk
0:00:45.7]} 32. Kd3 {[%clk 0:00:44.6]} 32... Ke6 {[%clk 0:00:44.9]} 33. Rh6
{[%clk 0:00:44.1]} 33... Rd8+ {[%clk 0:00:41.2]} 34. Ke2 {[%clk 0:00:37.9]}
34... Rh8 {[%clk 0:00:38.9]} 35. Kd3 {[%clk 0:00:39]} 35... Kd5 {[%clk
0:00:31.4]} 36. c4+ {[%clk 0:00:32.3]} 36... Kc5 {[%clk 0:00:32.4]} 37. Rh2
{[%clk 0:00:32.9]} 37... f5 {[%clk 0:00:27.4]} 38. Rh5 {[%clk 0:00:27.7]} 38...
Rd8+ {[%clk 0:00:24.8]} 39. Ke2 {[%clk 0:00:29.1]} 39... Rh8 {[%clk 0:00:24.3]}
40. Kd3 {[%clk 0:00:29.9]} 40... Kd6 {[%clk 0:00:19.7]} 41. Rh6+ {[%clk
0:00:22.8]} 41... Ke7 {[%clk 0:00:16.7]} 42. c5 {[%clk 0:00:24.5]} 42... Kf7
{[%clk 0:00:16.1]} 43. c6 {[%clk 0:00:24.4]} 43... bxc6 {[%clk 0:00:16.1]} 44.
Rxc6 {[%clk 0:00:26.3]} 44... Kg7 {[%clk 0:00:16.2]} 45. Rc7+ {[%clk 0:00:27.2]}
45... Kg6 {[%clk 0:00:17.5]} 46. Rxa7 {[%clk 0:00:27.5]} 46... Rxh7 {[%clk
0:00:18.4]} 47. Rxh7 {[%clk 0:00:28.4]} 47... Kxh7 {[%clk 0:00:19.6]} 48. a4
{[%clk 0:00:29.6]} 48... e4+ {[%clk 0:00:21.1]} 49. Ke2 {[%clk 0:00:28.5]} 49...
Kh6 {[%clk 0:00:14.7]} 50. a5 {[%clk 0:00:29]} 50... Kh5 {[%clk 0:00:16.1]} 51.
a6 {[%clk 0:00:30.2]} 51... Kh4 {[%clk 0:00:15.2]} 52. a7 {[%clk 0:00:31.1]}
52... Kg3 {[%clk 0:00:09.1]} 53. a8=Q {[%clk 0:00:33]} 1-0

[Event "*** Titled Tuesday 3|2 Blitz"]
[Site "Chess.com"]
[Date "2014.12.30"]
[Round "6"]
[White "DanielRensch"]
[Black "VovAn1991"]
[Result "0-1"]
[WhiteElo "2338"]
[BlackElo "2436"]
[TimeControl "180+2"]
[EndTime "12:19:18 PST"]
[Termination "VovAn1991 won by resignation"]

1. d4 {[%clk 0:03:00]} 1... Nf6 {[%clk 0:02:58.6]} 2. Nc3 {[%clk 0:02:59.7]}
2... g6 {[%clk 0:02:56.8]} 3. e4 {[%clk 0:02:59.4]} 3... d6 {[%clk 0:02:58]} 4.
Bg5 {[%clk 0:02:59.4]} 4... Bg7 {[%clk 0:02:58.8]} 5. f4 {[%clk 0:02:59.8]} 5...
O-O {[%clk 0:02:59.1]} 6. Nf3 {[%clk 0:02:59.7]} 6... c5 {[%clk 0:02:58.3]} 7.
dxc5 {[%clk 0:03:00.7]} 7... Qa5 {[%clk 0:02:59]} 8. Qd2 {[%clk 0:02:52.2]} 8...
Qxc5 {[%clk 0:02:53.1]} 9. Bd3 {[%clk 0:02:51.7]} 9... Bg4 {[%clk 0:02:51.8]}
10. a3 {[%clk 0:02:47.7]} 10... Bxf3 {[%clk 0:02:50.7]} 11. gxf3 {[%clk
0:02:47.9]} 11... Nc6 {[%clk 0:02:52.6]} 12. f5 {[%clk 0:02:36.3]} 12... Ne5
{[%clk 0:02:51.2]} 13. Rf1 {[%clk 0:02:34]} 13... Nc4 {[%clk 0:02:41.5]} 14.
Bxc4 {[%clk 0:02:25.4]} 14... Qxc4 {[%clk 0:02:43.4]} 15. O-O-O {[%clk
0:02:25.8]} 15... Rfc8 {[%clk 0:02:41]} 16. Bxf6 {[%clk 0:02:17.8]} 16... Bxf6
{[%clk 0:02:40.4]} 17. Nd5 {[%clk 0:02:18.5]} 17... Qa2 {[%clk 0:02:15.4]} 18.
Nxf6+ {[%clk 0:01:55.6]} 18... exf6 {[%clk 0:02:17.3]} 19. c3 {[%clk 0:01:44.7]}
19... Rc5 {[%clk 0:01:59.5]} 20. Kc2 {[%clk 0:01:11]} 20... Rac8 {[%clk
0:01:55.5]} 21. Ra1 {[%clk 0:01:08.9]} 21... Qc4 {[%clk 0:01:53.7]} 22. Rad1
{[%clk 0:01:01.9]} 22... Qa4+ {[%clk 0:01:35.1]} 23. Kb1 {[%clk 0:01:00.1]}
23... Kg7 {[%clk 0:01:27.9]} 24. h4 {[%clk 0:00:50.2]} 24... R8c6 {[%clk
0:01:15.5]} 25. h5 {[%clk 0:00:48]} 25... g5 {[%clk 0:01:16.5]} 26. h6+ {[%clk
0:00:48.5]} 26... Kxh6 {[%clk 0:01:14.8]} 27. Rh1+ {[%clk 0:00:48.4]} 27... Kg7
{[%clk 0:01:15.9]} 28. Qh2 {[%clk 0:00:47]} 28... Kf8 {[%clk 0:01:16.8]} 29.
Rxd6 {[%clk 0:00:40.6]} 29... Rxc3 {[%clk 0:00:47.7]} 30. Qh6+ {[%clk 0:00:18]}
30... Ke8 {[%clk 0:00:45.9]} 31. Qxf6 {[%clk 0:00:14.8]} 31... Qc2+ {[%clk
0:00:40.6]} 32. Ka1 {[%clk 0:00:15.1]} 32... Rxd6 {[%clk 0:00:26.9]} 33. Qxd6
{[%clk 0:00:17]} 33... Rd3 {[%clk 0:00:15.2]} 34. Qe5+ {[%clk 0:00:17.4]} 34...
Kf8 {[%clk 0:00:13.7]} 35. f6 {[%clk 0:00:11.2]} 35... Rd1+ {[%clk 0:00:05.7]}
36. Rxd1 {[%clk 0:00:12.4]} 36... Qxd1+ {[%clk 0:00:07.6]} 37. Ka2 {[%clk
0:00:13.9]} 37... Qd7 {[%clk 0:00:07.5]} 38. Qb8+ {[%clk 0:00:13.7]} 38... Qe8
{[%clk 0:00:08.5]} 39. Qd6+ {[%clk 0:00:12.7]} 39... Kg8 {[%clk 0:00:09.1]} 40.
Qe7 {[%clk 0:00:13.8]} 40... Qc8 {[%clk 0:00:09.7]} 41. Kb3 {[%clk 0:00:06.8]}
41... h6 {[%clk 0:00:07.9]} 42. Qd6 {[%clk 0:00:05.9]} 42... Qe6+ {[%clk
0:00:04]} 43. Qxe6 {[%clk 0:00:06.6]} 43... fxe6 {[%clk 0:00:05.9]} 44. Kc3
{[%clk 0:00:04.2]} 44... h5 {[%clk 0:00:06.8]} 45. Kd3 {[%clk 0:00:05.2]} 45...
h4 {[%clk 0:00:08.1]} 46. Ke3 {[%clk 0:00:06]} 46... e5 {[%clk 0:00:09.5]} 47.
Kf2 {[%clk 0:00:06.1]} 47... Kf7 {[%clk 0:00:10.8]} 48. Kg2 {[%clk 0:00:05.5]}
48... Kxf6 {[%clk 0:00:12.1]} 49. Kh3 {[%clk 0:00:06.9]} 49... Kg6 {[%clk
0:00:13.6]} 50. Kg4 {[%clk 0:00:08.2]} 50... Kh6 {[%clk 0:00:14.8]} 51. b3
{[%clk 0:00:09.7]} 51... Kg6 {[%clk 0:00:15]} 52. b4 {[%clk 0:00:09.5]} 52... b5
{[%clk 0:00:15.8]} 53. Kh3 {[%clk 0:00:10.6]} 53... Kh5 {[%clk 0:00:16.8]} 54.
Kg2 {[%clk 0:00:12]} 54... g4 {[%clk 0:00:18.2]} 0-1

[Event "*** Titled Tuesday 3|2 Blitz"]
[Site "Chess.com"]
[Date "2014.12.30"]
[Round "6"]
[White "BeerLag"]
[Black "DrHolmes13"]
[Result "0-1"]
[WhiteElo "2149"]
[BlackElo "2225"]
[TimeControl "180+2"]
[EndTime "12:19:19 PST"]
[Termination "DrHolmes13 won on time"]

1. e4 {[%clk 0:03:00]} 1... c6 {[%clk 0:02:58.8]} 2. d4 {[%clk 0:03:00.9]} 2...
d5 {[%clk 0:02:59.6]} 3. f3 {[%clk 0:03:02.5]} 3... e6 {[%clk 0:02:55.7]} 4. Nc3
{[%clk 0:03:03.5]} 4... Bb4 {[%clk 0:02:55.7]} 5. Ne2 {[%clk 0:03:04.6]} 5...
Ne7 {[%clk 0:02:55.7]} 6. Be3 {[%clk 0:03:05.2]} 6... Nd7 {[%clk 0:02:56]} 7. a3
{[%clk 0:03:06.3]} 7... Ba5 {[%clk 0:02:55.6]} 8. b4 {[%clk 0:03:06.8]} 8... Bc7
{[%clk 0:02:56.6]} 9. g3 {[%clk 0:03:07.2]} 9... O-O {[%clk 0:02:55.3]} 10. Bg2
{[%clk 0:03:08]} 10... Nb6 {[%clk 0:02:47.8]} 11. O-O {[%clk 0:03:07]} 11... Nc4
{[%clk 0:02:49.1]} 12. Bf2 {[%clk 0:03:08.5]} 12... b6 {[%clk 0:02:41.9]} 13.
Re1 {[%clk 0:02:54.7]} 13... Ba6 {[%clk 0:02:35.9]} 14. a4 {[%clk 0:02:55.4]}
14... Bb7 {[%clk 0:02:33.2]} 15. b5 {[%clk 0:02:48.3]} 15... Qd7 {[%clk
0:02:29.6]} 16. Nc1 {[%clk 0:02:41.4]} 16... Rfd8 {[%clk 0:02:21.9]} 17. e5
{[%clk 0:02:39.3]} 17... a6 {[%clk 0:02:18.4]} 18. bxc6 {[%clk 0:02:40.2]} 18...
Bxc6 {[%clk 0:02:14.6]} 19. Nd3 {[%clk 0:02:41.8]} 19... Rac8 {[%clk 0:02:10.2]}
20. g4 {[%clk 0:02:31.6]} 20... Bb8 {[%clk 0:02:10.6]} 21. f4 {[%clk 0:02:29.5]}
21... Ba7 {[%clk 0:02:10.2]} 22. Qf3 {[%clk 0:02:20.5]} 22... Bb7 {[%clk
0:02:02.5]} 23. Qg3 {[%clk 0:02:16.4]} 23... Nd2 {[%clk 0:02:00.3]} 24. Ra3
{[%clk 0:02:11.2]} 24... Ne4 {[%clk 0:01:59.7]} 25. Nxe4 {[%clk 0:02:04.9]}
25... dxe4 {[%clk 0:02:00.9]} 26. Bxe4 {[%clk 0:02:06.8]} 26... Bxe4 {[%clk
0:02:01]} 27. Rxe4 {[%clk 0:02:08.7]} 27... Rxc2 {[%clk 0:02:00.8]} 28. Re1
{[%clk 0:01:37.4]} 28... b5 {[%clk 0:01:54.5]} 29. axb5 {[%clk 0:01:31.5]} 29...
axb5 {[%clk 0:01:53.5]} 30. Nc5 {[%clk 0:01:29.9]} 30... Bxc5 {[%clk 0:01:37.2]}
31. dxc5 {[%clk 0:01:31.1]} 31... Nc6 {[%clk 0:01:24.9]} 32. Qb3 {[%clk
0:00:49.7]} 32... Qd2 {[%clk 0:01:17.6]} 33. Qe3 {[%clk 0:00:51.3]} 33... Qd5
{[%clk 0:01:03.1]} 34. Ra6 {[%clk 0:00:37.7]} 34... Nb4 {[%clk 0:00:53.2]} 35.
Rd6 {[%clk 0:00:37.4]} 35... Qa8 {[%clk 0:00:45.3]} 36. Qb3 {[%clk 0:00:29.4]}
36... Rc4 {[%clk 0:00:45.5]} 37. Red1 {[%clk 0:00:25.5]} 37... Rc8 {[%clk
0:00:45.4]} 38. Qf3 {[%clk 0:00:23.5]} 38... Nd5 {[%clk 0:00:43.6]} 39. f5
{[%clk 0:00:22.7]} 39... Rf4 {[%clk 0:00:42.3]} 40. Qg2 {[%clk 0:00:22.6]} 40...
h6 {[%clk 0:00:40.4]} 41. fxe6 {[%clk 0:00:23.4]} 41... fxe6 {[%clk 0:00:41.8]}
42. Rxe6 {[%clk 0:00:25.1]} 42... Nc7 {[%clk 0:00:38.7]} 43. Qxa8 {[%clk
0:00:25]} 43... Rxa8 {[%clk 0:00:39.1]} 44. Re7 {[%clk 0:00:26.6]} 44... Rxg4+
{[%clk 0:00:39.8]} 45. Bg3 {[%clk 0:00:28.2]} 45... Rc8 {[%clk 0:00:38.6]} 46.
Kg2 {[%clk 0:00:26.1]} 46... b4 {[%clk 0:00:38.3]} 47. Kh3 {[%clk 0:00:26]}
47... Rg6 {[%clk 0:00:38.8]} 48. Rd6 {[%clk 0:00:25.4]} 48... Kh7 {[%clk
0:00:38.7]} 49. Rb6 {[%clk 0:00:25.5]} 49... Nd5 {[%clk 0:00:36.9]} 50. Rxg6
{[%clk 0:00:24.7]} 50... Kxg6 {[%clk 0:00:38]} 51. Rd7 {[%clk 0:00:25.5]} 51...
Rxc5 {[%clk 0:00:38.6]} 52. e6 {[%clk 0:00:27.2]} 52... Kf6 {[%clk 0:00:37.2]}
53. Rd6 {[%clk 0:00:24.8]} 53... b3 {[%clk 0:00:33.8]} 54. Bf2 {[%clk
0:00:14.8]} 54... Rc3+ {[%clk 0:00:32.3]} 55. Kg4 {[%clk 0:00:16.3]} 55... Rc4+
{[%clk 0:00:32.8]} 56. Kg3 {[%clk 0:00:16.6]} 56... b2 {[%clk 0:00:32.2]} 0-1

[Event "*** Titled Tuesday 3|2 Blitz"]
[Site "Chess.com"]
[Date "2014.12.30"]
[Round "6"]
[White "PauloCesarCosta"]
[Black "oggy1984"]
[Result "1/2-1/2"]
[WhiteElo "2066"]
[BlackElo "2144"]
[TimeControl "180+2"]
[EndTime "12:21:54 PST"]
[Termination "Game drawn by agreement"]

1. Nf3 {[%clk 0:02:58.1]} 1... Nf6 {[%clk 0:02:57.4]} 2. c4 {[%clk 0:02:58.9]}
2... b6 {[%clk 0:02:57.5]} 3. g3 {[%clk 0:02:58.3]} 3... Bb7 {[%clk 0:02:58.3]}
4. Bg2 {[%clk 0:02:59.9]} 4... e6 {[%clk 0:03:00]} 5. Nc3 {[%clk 0:02:59.4]}
5... Be7 {[%clk 0:02:59.9]} 6. O-O {[%clk 0:02:59.5]} 6... O-O {[%clk
0:03:00.8]} 7. d4 {[%clk 0:02:59.8]} 7... d5 {[%clk 0:03:01.9]} 8. cxd5 {[%clk
0:02:58.9]} 8... Nxd5 {[%clk 0:03:01.9]} 9. Qc2 {[%clk 0:02:45.3]} 9... Nxc3
{[%clk 0:02:54.3]} 10. bxc3 {[%clk 0:02:45.4]} 10... Qc8 {[%clk 0:02:42.8]} 11.
Bf4 {[%clk 0:02:45.2]} 11... Nd7 {[%clk 0:02:41.1]} 12. Ne5 {[%clk 0:02:45.7]}
12... Nxe5 {[%clk 0:02:39.2]} 13. Bxe5 {[%clk 0:02:45.1]} 13... Bxg2 {[%clk
0:02:39.5]} 14. Kxg2 {[%clk 0:02:45.2]} 14... c5 {[%clk 0:02:40.8]} 15. Rac1
{[%clk 0:02:35.2]} 15... Rd8 {[%clk 0:02:29.8]} 16. Qe4 {[%clk 0:02:28.6]} 16...
Qa6 {[%clk 0:02:19.6]} 17. Rc2 {[%clk 0:02:18.9]} 17... Rac8 {[%clk 0:02:19.4]}
18. Rfc1 {[%clk 0:02:13]} 18... Qa4 {[%clk 0:02:06.1]} 19. Qg4 {[%clk 0:02:00]}
19... g6 {[%clk 0:01:51.7]} 20. Qe4 {[%clk 0:01:39.2]} 20... f6 {[%clk
0:01:31.6]} 21. Bf4 {[%clk 0:01:35.6]} 21... Kf7 {[%clk 0:01:28.3]} 22. Be3
{[%clk 0:01:16.9]} 22... f5 {[%clk 0:01:10.8]} 23. Qd3 {[%clk 0:01:04.3]} 23...
c4 {[%clk 0:01:01.6]} 24. Qd2 {[%clk 0:01:01]} 24... Rd5 {[%clk 0:00:53]} 25.
Bg5 {[%clk 0:00:51.4]} 25... Ba3 {[%clk 0:00:51]} 26. Rd1 {[%clk 0:00:40]} 26...
Qc6 {[%clk 0:00:50.3]} 27. f3 {[%clk 0:00:33.1]} 27... Rd7 {[%clk 0:00:47.9]}
28. Bf4 {[%clk 0:00:28.4]} 28... Re8 {[%clk 0:00:44]} 29. Be5 {[%clk 0:00:27.5]}
29... Bd6 {[%clk 0:00:35.3]} 30. Bxd6 {[%clk 0:00:21.7]} 30... Rxd6 {[%clk
0:00:31.9]} 31. Qh6 {[%clk 0:00:20.8]} 31... Kg8 {[%clk 0:00:33]} 32. Rcd2
{[%clk 0:00:07.5]} 32... Qd7 {[%clk 0:00:26.6]} 33. Qe3 {[%clk 0:00:05.9]} 33...
Rd5 {[%clk 0:00:24.2]} 34. f4 {[%clk 0:00:06]} 34... Ra5 {[%clk 0:00:20.4]} 35.
Kg1 {[%clk 0:00:06.1]} 35... Qd5 {[%clk 0:00:21.1]} 36. Qf3 {[%clk 0:00:05.3]}
36... Ra3 {[%clk 0:00:18.5]} 37. Qxd5 {[%clk 0:00:03.3]} 37... exd5 {[%clk
0:00:20.4]} 38. Rc1 {[%clk 0:00:02.6]} 38... Re3 {[%clk 0:00:19.7]} 39. Rdc2
{[%clk 0:00:03.7]} 39... Kf7 {[%clk 0:00:20.2]} 40. Kf2 {[%clk 0:00:04.6]} 40...
Re4 {[%clk 0:00:21.4]} 41. Kf3 {[%clk 0:00:04]} 41... Kf6 {[%clk 0:00:20.3]} 42.
e3 {[%clk 0:00:04.4]} 42... Re6 {[%clk 0:00:13.7]} 43. Ke2 {[%clk 0:00:05.1]}
43... b5 {[%clk 0:00:12.9]} 44. Kf3 {[%clk 0:00:04.5]} 44... Rea6 {[%clk
0:00:12.7]} 45. Ra1 {[%clk 0:00:04]} 45... R6a4 {[%clk 0:00:11.6]} 46. Ke2
{[%clk 0:00:03.4]} 46... a5 {[%clk 0:00:10.3]} 47. Kd2 {[%clk 0:00:04]} 47... b4
{[%clk 0:00:09.4]} 48. cxb4 {[%clk 0:00:04.9]} 48... axb4 {[%clk 0:00:11.3]} 49.
Kc1 {[%clk 0:00:04.4]} 49... Rxe3 {[%clk 0:00:07.3]} 50. Kd2 {[%clk 0:00:05.5]}
50... Rd3+ {[%clk 0:00:07.3]} 51. Kc1 {[%clk 0:00:06.6]} 51... Rf3 {[%clk
0:00:06.9]} 52. Kb2 {[%clk 0:00:05.9]} 52... Raa3 {[%clk 0:00:06.3]} 53. Re2
{[%clk 0:00:06.6]} 53... Rfd3 {[%clk 0:00:05.1]} 54. Rae1 {[%clk 0:00:06.7]}
54... c3+ {[%clk 0:00:03.8]} 55. Kb1 {[%clk 0:00:05.9]} 55... Kg7 {[%clk
0:00:04]} 56. Re7+ {[%clk 0:00:05.6]} 56... Kh6 {[%clk 0:00:05.1]} 57. R7e2
{[%clk 0:00:07.2]} 57... b3 {[%clk 0:00:05.9]} 58. axb3 {[%clk 0:00:07.2]} 58...
Rxd4 {[%clk 0:00:06.2]} 59. Kc2 {[%clk 0:00:06.4]} 59... Rd2+ {[%clk 0:00:07.2]}
60. Kxc3 {[%clk 0:00:07.3]} 60... Rxe2 {[%clk 0:00:07.6]} 61. Rxe2 {[%clk
0:00:08.4]} 61... Ra1 {[%clk 0:00:08.6]} 62. Kd4 {[%clk 0:00:08.1]} 62... Rd1+
{[%clk 0:00:09]} 63. Kc3 {[%clk 0:00:08.7]} 63... Kg7 {[%clk 0:00:09.5]} 64. Kc2
{[%clk 0:00:09.4]} 64... Rd4 {[%clk 0:00:09.8]} 65. Kc3 {[%clk 0:00:10.6]} 65...
Rd1 {[%clk 0:00:09.7]} 66. Kc2 {[%clk 0:00:11.2]} 66... Ra1 {[%clk 0:00:10.6]}
67. Kb2 {[%clk 0:00:11.9]} 67... Rf1 {[%clk 0:00:09.3]} 68. Rd2 {[%clk
0:00:11.6]} 68... Kf6 {[%clk 0:00:09.1]} 69. Rxd5 {[%clk 0:00:12.1]} 69... Rf2+
{[%clk 0:00:10]} 70. Kc3 {[%clk 0:00:13.6]} 70... Rxh2 {[%clk 0:00:11.9]} 71. b4
{[%clk 0:00:13]} 71... Rh1 {[%clk 0:00:09.7]} 72. b5 {[%clk 0:00:13.2]} 72...
Rb1 {[%clk 0:00:10.2]} 73. Kc4 {[%clk 0:00:13.7]} 73... h6 {[%clk 0:00:10.6]}
74. Kc5 {[%clk 0:00:13.7]} 74... g5 {[%clk 0:00:11.5]} 75. fxg5+ {[%clk
0:00:13.7]} 75... hxg5 {[%clk 0:00:12.3]} 76. b6 {[%clk 0:00:15.2]} 76... f4
{[%clk 0:00:13]} 77. gxf4 {[%clk 0:00:15.5]} 77... gxf4 {[%clk 0:00:14.1]} 78.
Kc6 {[%clk 0:00:16.6]} 78... f3 {[%clk 0:00:13.6]} 79. Rd2 {[%clk 0:00:12.7]}
79... Ke5 {[%clk 0:00:13.2]} 80. Rf2 {[%clk 0:00:12.6]} 80... Ke4 {[%clk
0:00:13.9]} 81. b7 {[%clk 0:00:13.1]} 81... Ke3 {[%clk 0:00:13.6]} 82. Rxf3+
{[%clk 0:00:14]} 82... Kxf3 {[%clk 0:00:14.8]} 83. Kc7 {[%clk 0:00:15.6]} 83...
Rc1+ {[%clk 0:00:13.2]} 1/2-1/2